Cogmind - Beta 15 @@@ ROGUE MODE // 2025.06.06 @ 16:51:37 Player: CrossedViper Result: Destroyed by V901-o with Concept Rapid Grenade Launcher Performance ------------- Evolutions (7) 3500 Regions Visited (21) 4200 Robots Destroyed (405) 2025 Value Destroyed (23283) 23283 Prototype IDs (124) 2480 Alien Tech Used (3) 600 Bonus (10407) 10407 TOTAL SCORE: 46495 Bonus ------- High Alert Combat Kills 4586 Follower Combat Kills 2742 Network Hubs Disabled 200 Met Zhirov 300 Built Enhanced Grunts 300 Met R17 at Cetus 500 Used Core Reset Matrix 3000 Met R17 at Research 2000 Friendly Fire -3221 Cogmind --------- Core Integrity 0/1300 Matter 72/300 Energy 1125/1640 System Corruption 71% Temperature Cool (0) Movement Flying (22) Location -3/Protoforge Parts ------- > --- POWER (3) -------- Hybrid Graviton Reactor Concept Zero-point Core Concept Zero-point Core > --- PROPULSION (8) --- Flying Surge Exoskeleton Experimental Surge Thruster Experimental Surge Thruster > --- UTILITY (6) ------ Scrap Engine Concept Turbovents Huge Storage Unit Experimental Weapon Cycler > --- WEAPON (4) ------- Experimental Terror Saw > --- INVENTORY (25) --- Experimental Cooling System Experimental Coolant Injector Long-range Sensor Array Long-range Terrain Scanner Experimental Salvage Targeting Computer Concept Weapon Articulator Experimental Kinecellerator Advanced Transmission Jammer Experimental Reaction Control System Advanced Component Analysis Suite Crosscalibrator Dimensional Node Initializer Transdimensional Reconstructor Subatomic Replicator Terrabomb Faulty Concept XC Strikerail Faulty Concept Tiamat Rocket Array Peak State ------------ > --- POWER ------------ Reinforced Antimatter Reactor Quantum-Particle Reactor > --- PROPULSION ------- Flying Surge Exoskeleton Experimental Surge Thruster Experimental Surge Thruster > --- UTILITY ---------- Armored Scrap Engine Huge Storage Unit Concept Countertargeting System Experimental Kinecellerator Crosscalibrator > --- WEAPON ----------- Concept Tiamat Rocket Array Hpw. Ballistic Linear Construct/C > --- INVENTORY -------- Experimental Cooling System Experimental Coolant Injector Long-range Sensor Array Long-range Terrain Scanner Experimental Salvage Targeting Computer Concept Hypertargeting System Concept Weapon Articulator Concept Weapon Articulator Experimental Kinecellerator Quantum Capacitor Advanced Transmission Jammer Experimental Reaction Control System Advanced Component Analysis Suite Long-range Tractor Beam Dimensional Node Initializer Transdimensional Reconstructor Transdimensional Reconstructor Subatomic Replicator Terrabomb Concept XC Strikerail Concept EMP Blanket Launcher Concept EMP Blanket Launcher Concept Tiamat Rocket Array [Rating: 205] Favorites ----------- Power Constructs Engine Subdweller Power Source Power Core Meta Core Reactor Constructs Propulsion Light Treads Treads Light Treads Leg Carbon-fiber Leg Wheel Wheel Hover Unit Cooled Gravmag System Flight Unit Constructs Utility Armored Scrap Engine Device Armored Scrap Engine Storage Huge Storage Unit Processor Advanced Targeting Computer Hackware Improved System Shield Protection Centrium Medium Armor Plating Weapon Constructs Energy Gun Subdweller Laser Energy Cannon Subdweller Beam Cannon Ballistic Gun Subdweller Machine Gun Ballistic Cannon Constructs Launcher Advanced EMP Blaster Slashing Weapon Katana Build | -11 -10 -10 -8 -8 -8 -6 -6 -6 -6 -6 -5 -5 -5 -5 -4 -4 -4 -4 -3 -3 -3 ------- Run | Yrd Mat Sub Mat Sto Rec Fac Ext Cet Arc Hub Fac Upp Upp Zhi Pro Fac Was Fac Res Qua Frg Slots Evolved 14 | . . . 4 . . 4 . . . . 2 . . . . 2 . . 2 . . Power 2 | . . . . . . 1 . . . . . . . . . 1 . . . . . Propulsion 6 | . . . 4 . . . . . . . 2 . . . . . . . . . . Utility 4 | . . . . . . 2 . . . . . . . . . . . . 2 . . Weapon 2 | . . . . . . 1 . . . . . . . . . 1 . . . . . Parts Attached 116 | 6 . 7 12 11 2 6 . 1 . 1 1 . . 6 . 3 3 7 5 6 39 Power 14 | 1 . 1 1 1 . . . . . . . . . . . 1 . . . . 9 Engine 3 | 1 . 1 . 1 . . . . . . . . . . . . . . . . . Core 4 | . . . 1 . . . . . . . . . . . . 1 . . . . 2 Reactor 7 | . . . . . . . . . . . . . . . . . . . . . 7 Propulsion 25 | 2 . . 5 6 . 1 . . . . 1 . . 2 . . 1 1 . . 6 Treads 12 | 2 . . 3 5 . . . . . . . . . . . . 1 1 . . . Leg 3 | . . . 2 . . . . . . . . . . . . . . . . . 1 Wheel 1 | . . . . 1 . . . . . . . . . . . . . . . . . Hover 3 | . . . . . . . . . . . 1 . . 2 . . . . . . . Flight 6 | . . . . . . 1 . . . . . . . . . . . . . . 5 Utility 47 | 1 . 1 2 . 1 2 . 1 . 1 . . . 4 . 2 2 4 4 6 16 Device 32 | . . 1 . . 1 1 . . . 1 . . . 2 . 2 1 2 2 6 13 Storage 6 | 1 . . 1 . . . . 1 . . . . . 1 . . . 1 1 . . Processor 3 | . . . . . . . . . . . . . . . . . . 1 . . 2 Hackware 4 | . . . 1 . . 1 . . . . . . . . . . 1 . 1 . . Protection 2 | . . . . . . . . . . . . . . 1 . . . . . . 1 Artifact . | . . . . . . . . . . . . . . . . . . . . . . Weapon 30 | 2 . 5 4 4 1 3 . . . . . . . . . . . 2 1 . 8 Energy Gun 9 | 1 . 2 1 2 . . . . . . . . . . . . . 1 . . 2 Energy Cannon 1 | . . 1 . . . . . . . . . . . . . . . . . . . Ballistic Gun 5 | 1 . 1 3 . . . . . . . . . . . . . . . . . . Ballistic Cannon 5 | . . . . . . 2 . . . . . . . . . . . . 1 . 2 Launcher 8 | . . 1 . 2 . 1 . . . . . . . . . . . 1 . . 3 Special Weapon . | . . . . . . . . . . . . . . . . . . . . . . Impact Weapon . | . . . . . . . . . . . . . . . . . . . . . . Slashing Weapon 2 | . . . . . 1 . . . . . . . . . . . . . . . 1 Piercing Weapon . | . . . . . . . . . . . . . . . . . . . . . . Special Melee Weapon . | . . . . . . . . . . . . . . . . . . . . . . Unidentified Prototypes 35 | . . 1 1 2 1 2 . . . . 1 . . 3 . 1 . 3 1 4 15 Corrupted Parts 6 | . . . . . . . . . . . . . . . . . . . . 2 4 System Corruption 32 | . . . . . . . . . . . . . . . . . . . . 11 21 Parts Lost 44 | . . 1 1 8 . 1 . . . . . . . . 1 3 . 7 2 2 18 Power 8 | . . 1 . 1 . . . . . . . . . . . . . 2 . . 4 Propulsion 14 | . . . 1 7 . 1 . . . . . . . . . . . 2 . . 3 Utility 13 | . . . . . . . . . . . . . . . . 3 . 2 2 2 4 Weapon 9 | . . . . . . . . . . . . . . . 1 . . 1 . . 7 Highest Loss Streak 8 | . . 1 1 6 . 1 . . . . . . . . 1 1 . 2 1 1 8 To Critical Strikes 2 | . . . . . . . . . . . . . . . . . . 1 . . 1 Average Backups 12 | 1 3 5 15 18 7 4 5 7 11 17 24 24 24 24 24 18 7 10 12 19 21 Power . | . 1 . 1 . . . . . . 2 4 4 3 3 2 1 . . . . . Propulsion . | . 1 . . . . . . . 1 . . 1 . . . . . 1 1 . . Utility 4 | . . . 2 2 . 1 1 1 1 2 5 6 7 8 9 11 5 7 8 11 12 Weapon 5 | . 1 3 9 13 5 2 3 5 8 10 13 12 12 11 10 4 . . 1 4 3 Tool/Special . | . . . . . . . . . . . . . . . . . . . . . . Unused Backups 94 | . . 4 . 2 12 3 . . . 2 5 1 3 1 2 9 9 3 3 10 25 Power 7 | . . 1 . . 1 . . . . . 1 . 1 . 1 2 . . . . . Propulsion 9 | . . 1 . . . . . . . 1 . . 1 . . . . 2 1 . 3 Utility 28 | . . 1 . 1 3 . . . . . . 1 1 . . . 8 . . 4 9 Weapon 45 | . . 1 . 1 7 3 . . . 1 4 . . 1 1 7 1 1 2 6 9 Tool/Special 5 | . . . . . 1 . . . . . . . . . . . . . . . 4 Average Slot Usage (%) 51 | . 85 97 75 85 57 41 45 40 40 40 35 35 35 39 38 29 34 31 37 36 40 Engine 3 | . 14 12 . 6 8 . . . . . . . . . . . . . . . . Core 2 | . . . 7 2 . 5 6 6 6 4 4 5 5 5 . 6 6 . 3 . . Reactor 1 | . . . . . . . . . . 1 . . . . 4 2 1 4 . 4 6 Treads 10 | . 28 28 24 32 22 3 5 . . 5 1 5 5 5 . . 2 5 2 . 1 Leg 1 | . . . 15 4 . . . . . . 2 . . . . . 4 . 1 3 . Flight 1 | . . . . . . 7 5 6 6 . 1 . . . . 1 . . . . 4 Device 10 | . . 13 . . 8 12 13 9 6 11 11 11 11 10 11 7 9 8 15 14 14 Storage 5 | . 14 14 9 9 2 . . 2 6 6 5 5 5 5 5 4 1 4 4 4 4 Hackware 1 | . . . 2 9 . 2 6 6 6 1 . . . . . . 2 . 2 1 . Energy Gun 2 | . 14 13 5 2 . . . . . . . . . . . . . . . . . Energy Cannon 1 | . . . . . 2 1 1 4 6 1 1 5 5 5 5 1 . 3 . 1 . Ballistic Gun 2 | . 14 12 7 11 1 . . . . . . . . . . . . . . . . Ballistic Cannon 2 | . . . . . 2 5 4 1 . 4 3 . . . . 2 4 1 3 2 3 Peak Build Rating 205 | 6 6 14 30 32 39 69 68 75 75 89 96 89 89 105 110 126 142 150 132 164 205 Average Rating 73 | 4 6 12 22 23 31 56 65 72 75 84 88 89 88 95 99 117 137 110 107 148 156 On Entrance 72 | . 6 6 12 30 23 37 64 68 75 75 89 89 89 88 105 102 125 142 88 130 155 Naked Turns . | . . . . . . . . . . . . . . . . . . . . . . Heaviest Build 171 | 14 14 23 56 56 55 25 35 117 117 135 135 115 115 116 116 128 128 69 122 142 171 Greatest Support 405 | 40 40 40 80 100 108 46 51 75 75 201 187 133 133 133 133 177 177 181 294 319 405 Greatest Overweight (x) 5 | . . . 1 5 . 3 . 1 1 1 . . . . . . . . . . . Average Overweight (x) . | . . . . 1 . . . . 1 . . . . . . . . . . . . Largest Inventory Capacity 25 | 8 8 8 20 20 20 20 5 25 25 25 25 25 25 25 25 25 25 15 25 25 25 Average Capacity 15 | 6 8 8 19 20 8 5 5 14 25 25 25 25 25 25 25 25 9 14 16 25 25 Most Carried 25 | 3 3 8 20 20 20 5 5 12 12 25 25 25 25 25 25 23 21 15 25 25 25 Average Carried 13 | 1 3 5 16 18 7 4 5 8 12 17 24 24 24 24 24 19 8 11 13 23 22 Final Capacity 25 | 8 8 8 20 20 5 5 5 25 25 25 25 25 25 25 25 25 5 15 25 25 25 Final Carried 25 | 3 3 8 20 20 5 5 5 12 12 25 24 25 24 25 24 19 5 14 23 25 17 Scrap Engine Consumption 295 | . . . . . 49 33 18 6 . 20 21 . 2 2 7 21 5 29 14 26 42 Constructs Created 4 | . . . . . 3 . . . . . . . . . . . . . . . 1 Constructs Modified 122 | . . . . . 17 14 7 3 . 7 11 . . 1 5 10 2 14 6 13 12 Class Distribution -------------------- 64% | Construct 15% | Mutant 11% | Scavenger-Mutant 8% | Commander-Construct Dominant Class ---------------- Mutant | -10/Materials Mutant | -10/Subcaves Scavenger-Mutant | -8/Materials Scavenger-Mutant | -8/Storage Construct | -8/Recycling Construct | -6/Factory Commander-Construct | -6/Extension Commander-Construct | -6/Cetus Construct | -6/Archives Construct | -6/Hub_04(d) Construct | -5/Factory Construct | -5/Upper Caves Construct | -5/Upper Caves Construct | -5/Zhirov Construct | -4/Proximity Caves Construct | -4/Factory Construct | -4/Waste Construct | -4/Factory Construct | -3/Research Construct | -3/Quarantine Construct | -3/Protoforge Resources | -11 -10 -10 -8 -8 -8 -6 -6 -6 -6 -6 -5 -5 -5 -5 -4 -4 -4 -4 -3 -3 -3 ----------- Run | Yrd Mat Sub Mat Sto Rec Fac Ext Cet Arc Hub Fac Upp Upp Zhi Pro Fac Was Fac Res Qua Frg Matter Collected 9469 | 199 47 417 415 479 135 362 127 22 . 76 179 112 40 . 531 1049 335 2422 354 799 1369 Remotely . | . . . . . . . . . . . . . . . . . . . . . . Salvage Created 19882 | . 47 38 527 1142 386 978 477 . . 1299 1266 121 67 . 1031 1351 543 3097 639 2455 4418 Parts 902 | . 5 6 31 52 9 23 15 . . 45 79 2 3 . 37 67 4 147 25 137 215 Haulers Intercepted 17 | . . . 2 . . 2 1 . . 4 1 . . . . 1 . 3 2 1 . Recyclers Shooed 6 | . . . 1 1 . 3 . . . . 1 . . . . . . . . . . Parts Field Recycled . | . . . . . . . . . . . . . . . . . . . . . . Retrieved Matter . | . . . . . . . . . . . . . . . . . . . . . . Parts Self-Destructed 50 | . . 18 . . . . . . . . . 2 3 . 27 . . . . . . Prevented 9 | . . . . . . . . . . . . . 1 . 8 . . . . . . Kills | -11 -10 -10 -8 -8 -8 -6 -6 -6 -6 -6 -5 -5 -5 -5 -4 -4 -4 -4 -3 -3 -3 ------- Run | Yrd Mat Sub Mat Sto Rec Fac Ext Cet Arc Hub Fac Upp Upp Zhi Pro Fac Was Fac Res Qua Frg Combat Hostiles Destroyed 322 | . 3 2 7 22 1 9 9 . . 35 22 3 1 . 17 23 2 49 6 36 75 Melee 2 | . . . . . . . . . . 2 . . . . . . . . . . . Guns 18 | . 3 1 5 9 . . . . . . . . . . . . . . . . . Cannons 238 | . . . . . 1 9 7 . . 26 22 3 1 . 12 20 2 45 6 29 55 AOE 42 | . . 1 2 12 . . . . . 1 . . . . 2 3 . 3 . . 18 Classes Destroyed 26 | . 1 1 8 5 . 1 2 . . 1 . . . . . . 1 2 1 . 3 Worker 12 | . . . 1 1 . 1 . . . 4 1 . . . . . . 4 . . . Builder 17 | . . . 2 1 1 . 2 . . 1 2 . . . . . . 4 1 1 2 Tunneler 3 | . . . 1 . . . . . . . 1 . . . . 1 . . . . . Hauler 17 | . . . 2 . . 2 1 . . 4 1 . . . . 1 . 3 2 1 . Recycler 10 | . . . 3 1 1 3 1 . . . . . . . . 1 . . . . . Mechanic 7 | . . . . 1 . . . . . . 1 . . . . . . . . 1 4 Operator 6 | . . . 1 . . . . . . . 2 . . . . . . 1 . 1 1 Drone 3 | . . . . . . . . . . . . . . . . . . . . . 3 Watcher 10 | . . . . . . . 1 . . . 1 . . . . 2 . 3 1 1 1 Swarmer 35 | . 3 1 3 . . . 2 . . 4 4 . . . 1 4 . 6 4 3 . Cutter 2 | . . . . . . . . . . . . . . . . . . 2 . . . Saboteur 1 | . . . . . . . . . . . . . . . . . . . . . 1 Grunt 103 | . . . 3 12 . 5 2 . . 17 4 2 . . 7 3 . 17 . 12 19 Brawler 12 | . . . . 1 . . . . . 1 1 . . . 2 1 . 1 . . 5 Duelist 11 | . . . . 1 . . 1 . . . 2 . . . 1 . . 1 . . 5 Protector 3 | . . . . 2 . . . . . . . . . . 1 . . . . . . Sentry 34 | . . . 1 4 1 3 1 . . 6 4 1 1 . 1 3 . 1 . 2 5 Specialist 6 | . . . . . . . . . . . . . . . . . . 6 . . . Hunter 25 | . . . . 2 . . . . . 3 1 . . . 2 4 . 6 2 1 4 Programmer 46 | . . . . . . 1 1 . . 3 6 . . . 2 7 . 8 . 10 8 Heavy 3 | . . . . . . . . . . 1 . . . . . 1 . 1 . . . Behemoth 2 | . . . . . . . 1 . . . . . . . . . . . . . 1 Compactor 2 | . . . . . . . . . . . . . . . . . 2 . . . . Quarantine Guard 8 | . . . . . . . . . . . . . . . . . . . . 8 . Hotshot 5 | . . . . . . . . . . . . . . . . . . . . . 5 Decapitator 14 | . . . . . . . . . . . . . . . . . . . . . 14 Immortal 2 | . . . . . . . . . . . . . . . . . . . . . 2 V-Series 3 | . . . . . . . . . . . . . . . . . . . . . 3 Subdweller 1 | . . 1 . . . . . . . . . . . . . . . . . . . Thug 1 | . . . . . . . 1 . . . . . . . . . . . . . . Revision 2 | . . . . . . . . . . . . . . . . . . . 2 . . Best Kill Streak 12 | . 3 1 4 8 1 5 2 . . 6 6 3 1 . 6 6 1 10 4 4 12 Combat Bots Only 10 | . 3 1 2 8 1 5 2 . . 5 6 3 1 . 6 5 1 9 4 4 10 Max Kills in Single Turn 5 | . 1 1 4 4 1 1 2 . . 2 2 1 1 . 1 3 1 5 1 1 5 Gunslinging . | . . . . . . . . . . . . . . . . . . . . . . Exploded 4 | . . 1 2 3 . . . . . 1 . . . . 1 3 . 1 . . 4 Melee 1 | . . . . . . . . . . 1 . . . . . . . . . . . Uniques/NPCs Destroyed . | . . . . . . . . . . . . . . . . . . . . . . Combat | -11 -10 -10 -8 -8 -8 -6 -6 -6 -6 -6 -5 -5 -5 -5 -4 -4 -4 -4 -3 -3 -3 -------- Run | Yrd Mat Sub Mat Sto Rec Fac Ext Cet Arc Hub Fac Upp Upp Zhi Pro Fac Was Fac Res Qua Frg Hostile Shots Fired 2484 | . 17 32 19 106 3 203 135 . . 241 78 11 4 . 96 93 13 594 98 181 560 Missed 859 | . 6 10 5 28 1 94 49 . . 57 26 6 1 . 34 37 . 167 37 63 238 Hits 1625 | . 11 22 14 78 2 109 86 . . 184 52 5 3 . 62 56 13 427 61 118 322 Melee 64 | . . . . 3 . . . . . 1 . . . . 2 . 13 7 . . 38 Projectile 1561 | . 11 22 14 75 2 109 86 . . 183 52 5 3 . 60 56 . 420 61 118 284 AOE 11 | . . . 1 . . 1 . . . . . . . . . . . . . . 9 Critical Strikes 123 | . 1 1 1 4 . 7 3 1 . 5 . . . . 8 3 6 22 . 7 54 Part Disruptions 3 | . . . . . . . 1 . . . . . . . . . . 1 . . 1 Damage Taken 33420 | . 89 342 327 1319 39 1064 789 140 250 2787 993 121 74 . 1285 1418 585 7987 1206 2678 9927 Core 2801 | . 25 77 40 107 . 165 76 . . 187 159 . 24 . 38 20 58 541 43 258 983 Absorbed by Shields 653 | . . . . . . . 39 12 . . . . . . . . . . . 602 . Reduced by Siege Mode 222 | . . . . . . . . . . 121 . . . . . . . 101 . . . Ignored by Resistances 162 | . . . . . . . . . . . . . . . . . . . . . 162 Regen/Repaired (Parts) 13554 | . . . . . 10 461 394 88 . 1314 1350 . . 37 767 881 126 3039 647 1970 2470 Core Remaining (%) 67 | 100 . 59 . . 73 . . . . 49 . . . . 77 . . 46 . . . Volleys Fired 1227 | . 7 80 29 53 13 77 46 6 . 104 62 11 4 . 53 78 41 209 49 109 196 Largest 2 | . 2 2 2 2 1 1 1 1 . 1 1 1 1 . 1 1 1 1 1 1 1 Hottest 282 | . 70 110 90 88 144 122 174 174 . 103 103 66 66 . 66 185 185 185 181 282 275 Shots Fired 1319 | . 14 129 46 90 13 77 46 6 . 104 61 11 4 . 52 77 41 201 49 108 190 Gun 236 | . 14 99 44 79 . . . . . . . . . . . . . . . . . Cannon 1024 | . . 15 . . 13 75 46 6 . 104 61 11 4 . 43 77 41 197 49 108 174 Launcher 59 | . . 15 2 11 . 2 . . . . . . . . 9 . . 4 . . 16 Special . | . . . . . . . . . . . . . . . . . . . . . . Kinetic 761 | . 7 80 30 68 5 64 11 . . . 56 11 4 . 43 31 41 60 40 60 150 Thermal 476 | . 7 49 16 13 8 6 26 4 . 104 5 . . . . 46 . 137 9 22 24 Explosive 11 | . . . . . . 2 . . . . . . . . . . . 4 . . 5 Electromagnetic 71 | . . . . 9 . 5 9 2 . . . . . . 9 . . . . 26 11 Robot Hit Streak 31 | . 4 9 10 9 6 24 8 4 . 31 11 4 6 . 10 13 5 10 4 7 20 Robot Miss Streak 6 | . 2 3 2 3 1 4 5 3 . 4 3 1 . . 3 3 3 4 4 3 6 Penetration Max 1 | . . . . . . . . . . . 1 1 . . 1 . . . . . . Secondary Targets 3 | . . . 3 . . . . . . . . . . . . . . . . . . Max Gunslinging Chain 1 | . . . 1 . . . . . . . . . . . . . . . . . . Capacitor 13 | . . . . . . . . . . . . . . . . . . . . 13 . Shots Hit Robots 848 | . 9 20 27 61 11 52 43 5 . 89 46 8 2 . 39 51 24 120 30 65 146 Core Hits 568 | . 3 9 20 50 6 29 50 2 . 80 35 3 1 . 22 25 2 67 18 28 118 Critical Kills 5 | . . . . . . . . . . . . . . . . 1 . . . . 4 Critical Parts Destroyed 3 | . . . . . . . . . . . . . . . . . . . . . 3 Critical Strikes 18 | . 1 . . . . . . . . . . . . . . 1 . 4 . . 12 Burn 5 | . 1 . . . . . . . . . . . . . . . . 4 . . . Destroy 10 | . . . . . . . . . . . . . . . . 1 . . . . 9 Blast 3 | . . . . . . . . . . . . . . . . . . . . . 3 Melee Attacks 5 | . . . . . 3 . . . . . . . . . . . . . . . 2 Impact . | . . . . . . . . . . . . . . . . . . . . . . Slashing 5 | . . . . . 3 . . . . . . . . . . . . . . . 2 Piercing . | . . . . . . . . . . . . . . . . . . . . . . Sneak Attacks 2 | . . . . . 2 . . . . . . . . . . . . . . . . Combat Hostiles . | . . . . . . . . . . . . . . . . . . . . . . Follow-up Attacks . | . . . . . . . . . . . . . . . . . . . . . . Damage Inflicted 82296 | . 108 596 1053 2682 479 1892 2082 263 . 6283 3600 820 82 . 3232 5870 3584 13338 1591 10527 24214 Guns 1865 | . 108 343 542 872 . . . . . . . . . . . . . . . . . Cannons 70701 | . . 80 . . 346 1892 2082 263 . 5925 3516 820 82 . 2826 5338 3584 12568 1591 10505 19283 Explosions 9525 | . . 173 497 1810 . . . . . 340 84 . . . 406 532 . 752 . . 4931 Melee 133 | . . . . . 133 . . . . . . . . . . . . . . . . Ramming 72 | . . . 14 . . . . . . 18 . . . . . . . 18 . 22 . Kinetic 43780 | . 59 405 724 1012 154 1659 386 . . . 3246 820 82 . 2826 2157 3584 3738 1295 6077 15556 Thermal 27978 | . 49 191 177 305 192 79 1169 214 . 5925 354 . . . . 3713 . 8906 296 2681 3727 Explosive 4944 | . . . 138 456 . . . . . . . . . . . . . 390 . . 3960 Electromagnetic 5389 | . . . . 909 . 154 527 49 . 340 . . . . 406 . . 286 . 1747 971 Impact . | . . . . . . . . . . . . . . . . . . . . . . Slashing 133 | . . . . . 133 . . . . . . . . . . . . . . . . Piercing . | . . . . . . . . . . . . . . . . . . . . . . Highest Corruption 71 | . . . . . . 1 2 2 2 10 5 5 5 5 10 7 7 35 . 22 71 Average Corruption 9 | . . . . . . 1 1 2 2 2 4 5 5 5 9 3 7 19 . 8 26 Corruption Purged . | . . . . . . . . . . . . . . . . . . . . . . Corruption Blocked . | . . . . . . . . . . . . . . . . . . . . . . Effects 362 | . . . . . . 3 18 8 3 17 6 16 4 1 31 21 12 84 . 42 96 Message Errors 90 | . . . . . . 2 5 2 . 3 1 4 . 1 12 5 1 18 . 9 27 Matter Fused 88 | . . . . . . . 5 2 2 5 3 2 . . 7 5 4 20 . 12 21 Heat Flow Errors 42 | . . . . . . 1 2 3 . 1 . 2 1 . 4 4 1 8 . 5 10 Energy Discharges 38 | . . . . . . . 3 . 1 4 . 6 2 . 2 1 2 5 . 3 9 Parts Rejected 5 | . . . . . . . . . . . . . . . 1 . 1 1 . . 2 Parts Fused 2 | . . . . . . . . 1 . . . . . . . . . 1 . . . Data Loss (minor) 35 | . . . . . . . 1 . . 2 . 1 . . 2 4 1 11 . 8 5 Data Loss (major) 17 | . . . . . . . 2 . . 1 1 . . . . 1 1 6 . 2 3 Alerts 9 | . . . . . . . . . . 1 . 1 1 . . . 1 2 . 1 2 Misdirections 18 | . . . . . . . . . . . . . . . 2 . . 4 . 1 11 Weapon Failures 18 | . . . . . . . . . . . 1 . . . 1 1 . 8 . 1 6 Overload Shots . | . . . . . . . . . . . . . . . . . . . . . . Overflow Damage 9727 | . . 3 59 5 51 11 30 . . 173 399 47 . . 357 705 16 2305 7 2830 2729 Projectiles 9299 | . . . . . 23 11 30 . . 127 355 47 . . 357 705 16 2230 7 2830 2561 Explosions 400 | . . 3 59 5 . . . . . 46 44 . . . . . . 75 . . 168 Melee 28 | . . . . . 28 . . . . . . . . . . . . . . . . Knockbacks 144 | . . . . . . 10 3 . . . 10 1 . . 10 6 . 16 16 13 59 Impact . | . . . . . . . . . . . . . . . . . . . . . . Kinetic 138 | . . . . . . 10 3 . . . 10 1 . . 10 6 . 14 16 12 56 Secondary 6 | . . . . . . . . . . . . . . . . . . 2 . 1 3 Self-Inflicted Damage 1808 | . . 36 . 118 . 12 . . . 95 56 . . . . 65 . 455 . . 971 Shots 45 | . . 2 . 3 . 1 . . . 1 1 . . . . 1 . 10 . . 26 Rammed 8 | . . . 3 . 1 . . . . . . . . . . . . 4 . . . Targets Rammed 13 | . . . 5 . 1 . . . . 2 . . . . . . . 4 . 1 . Kicked 1 | . . . . . . . . . . . . . . . . . . . . 1 . Crushed 4 | . . . 2 . . . . . . 2 . . . . . . . . . . . Highest Temperature 551 | . 63 2 117 233 184 121 312 198 . 384 258 218 220 . 258 270 376 428 196 551 417 Average Temperature 100 | . 32 2 32 54 59 32 43 77 . 154 68 65 69 . 117 41 146 127 92 113 119 Received Heat Transfer 4459 | . . 141 84 414 . 378 246 18 . 639 36 . 9 . 260 39 . 1192 9 270 724 Effects 23 | . . . . . . . . . . 5 . . . . . 1 1 12 . 4 . Shutdowns 7 | . . . . . . . . . . 1 . . . . . . 1 4 . 1 . Energy Bleed 5 | . . . . . . . . . . 3 . . . . . . . 2 . . . Interference 6 | . . . . . . . . . . 1 . . . . . 1 . 4 . . . Short Circuit 1 | . . . . . . . . . . . . . . . . . . 1 . . . Damage (minor) 1 | . . . . . . . . . . . . . . . . . . 1 . . . Damage (major) 3 | . . . . . . . . . . . . . . . . . . . . 3 . Siege Activations 10 | . . . . . . . . . . 7 . . . . . . . 3 . . . Total Turns 186 | . . . . . . . . . . 146 . . . . . . . 40 . . . Longest Duration 58 | . . . . . . . . . . 58 . . . . . . . 21 . . . Martial Activations . | . . . . . . . . . . . . . . . . . . . . . . Shielding Activations . | . . . . . . . . . . . . . . . . . . . . . . Robots Disrupted . | . . . . . . . . . . . . . . . . . . . . . . Combat Hostiles . | . . . . . . . . . . . . . . . . . . . . . . Robots Corrupted 16 | . . . . 1 . . 1 . . . . . . . 3 . . 1 . 7 3 Combat Hostiles 15 | . . . . 1 . . 1 . . . . . . . 3 . . 1 . 7 2 Parts Fried 53 | . . . . 6 . 1 . . . . . . . . 5 . . 4 . 33 4 Impact Corruptions 8 | . . . . . . . . . . . . . . . . . . 1 . 1 6 Robots Melted 8 | . . . . . . . 1 . . 7 . . . . . . . . . . . Combat Hostiles 7 | . . . . . . . 1 . . 6 . . . . . . . . . . . Parts Melted 17 | . . . . . . . 6 . . 9 . . . . . . . 2 . . . Heat Transferred 19931 | . 222 273 225 481 185 74 3182 389 . 9011 161 . . . . 1373 . 3578 296 481 . Parts Sabotaged . | . . . . . . . . . . . . . . . . . . . . . . Parts Stolen . | . . . . . . . . . . . . . . . . . . . . . . Parts Stripped . | . . . . . . . . . . . . . . . . . . . . . . Power Chain Reactions 6 | . . . . 3 . . . . . . . . . . . . . 3 . . . Alert | -11 -10 -10 -8 -8 -8 -6 -6 -6 -6 -6 -5 -5 -5 -5 -4 -4 -4 -4 -3 -3 -3 ------- Run | Yrd Mat Sub Mat Sto Rec Fac Ext Cet Arc Hub Fac Upp Upp Zhi Pro Fac Was Fac Res Qua Frg Maximum Alert Level 4 | . . . 1 2 1 1 3 2 2 3 3 . . . . 2 1 4 2 1 4 Low Security (%) 41 | 100 100 . 56 25 97 22 50 . 30 23 . . . . . 35 98 32 . 37 2 Level 1 23 | . . . 43 6 2 77 4 39 66 31 30 . . . . 10 1 8 . 62 8 Level 2 23 | . . . . 68 . . 18 60 2 43 28 . . . . 54 . 20 100 . 53 Level 3 8 | . . . . . . . 25 . . 1 41 . . . . . . 30 . . 13 Level 4 2 | . . . . . . . . . . . . . . . . . . 8 . . 20 Level 5 . | . . . . . . . . . . . . . . . . . . . . . . High Security . | . . . . . . . . . . . . . . . . . . . . . . Max Security . | . . . . . . . . . . . . . . . . . . . . . . Peak Influence 1588 | . 75 . 392 682 253 390 797 476 437 905 1088 . . . . 621 203 1148 658 371 1588 Initial 594 | . . . . 147 253 317 166 416 134 124 443 . . . . 60 197 11 594 262 180 Average 338 | . 40 . 195 462 45 277 391 406 290 366 637 . . . . 322 113 523 566 205 785 Influence Increases 14882 | . 91 318 902 877 314 975 1273 357 403 1364 1179 60 20 . 415 972 18 1765 285 1153 2141 Destroy 0b10 Robot/C 7620 | . 60 200 480 400 60 280 520 160 180 700 440 60 20 . 320 460 . 980 120 720 1460 Destroy 0b10 Robot/NC 485 | . . . 55 35 25 30 35 10 5 45 45 . . . 5 25 . 75 20 25 50 Destroy Leader 1376 | . 10 10 116 100 . 74 54 . . 208 104 . . . 30 126 . 202 16 154 172 Allied During Kill 1190 | . . 48 108 10 35 48 586 170 185 . . . . . . . . . . . . Successful Hack 243 | . 6 . . 7 9 18 26 . . 9 32 . . . . . . 46 57 33 . Select Force Hacks 210 | . . . 30 . 150 . . . . . 30 . . . . . . . . . . Disable Machine 1260 | . . . 45 90 30 30 15 15 15 210 240 . . . . 165 . 120 . 105 180 Destroy Structure 1168 | . . . 53 55 5 35 7 2 3 102 288 . . . . 166 18 162 72 56 144 Advance Influence 250 | . . . . . . 250 . . . . . . . . . . . . . . . Partial Spotted 90 | . . . . . . 60 . . . 15 . . . . . . . . . . 15 Lose Combat Pursuer 990 | . 15 60 15 180 . 150 30 . 15 75 . . . . 60 30 . 180 . 60 120 Influence Decreases 13294 | . 26 383 552 577 802 797 869 766 381 816 1024 607 189 344 318 504 566 649 951 1298 875 Entered New Map 4258 | . . 32 . 203 397 95 174 328 201 233 462 393 99 344 . 37 368 6 539 205 142 Time Decay 7476 | . 26 284 422 254 402 592 595 278 80 583 562 214 90 . 308 447 198 573 392 623 553 Lost Part 427 | . . 7 10 80 . 10 . . . . . . . . 10 20 . 70 20 20 180 Lost Ally 680 | . . 60 120 40 . 100 100 160 100 . . . . . . . . . . . . Purge Threat 453 | . . . . . 3 . . . . . . . . . . . . . . 450 . Squads Dispatched 85 | . . . 4 5 . 7 . . . 12 7 . . . 1 4 . 16 7 8 14 Investigation 14 | . . . 4 2 . 1 . . . 1 1 . . . . . . 1 4 . . Extermination 22 | . . . . . . 3 . . . 3 2 . . . . 3 . 4 . 4 3 Reinforcement 23 | . . . . . . 3 . . . 4 2 . . . . 1 . 8 3 1 1 Assault 17 | . . . . 3 . . . . . 1 2 . . . 1 . . 3 . . 7 Garrison 9 | . . . . . . . . . . 3 . . . . . . . . . 3 3 Intercept . | . . . . . . . . . . . . . . . . . . . . . . Searches Triggered . | . . . . . . . . . . . . . . . . . . . . . . Construction Impeded 3 | . . . . . . . . . . 1 1 . . . . . . 1 . . . Haulers Reinforced 5 | . . . . . . 1 . . . . . . . . . . . 2 1 1 . Active Scanning Responses . | . . . . . . . . . . . . . . . . . . . . . . Cargo Convoy Interrupts 1 | . . . . . . 1 . . . . . . . . . . . . . . . Stealth | -11 -10 -10 -8 -8 -8 -6 -6 -6 -6 -6 -5 -5 -5 -5 -4 -4 -4 -4 -3 -3 -3 --------- Run | Yrd Mat Sub Mat Sto Rec Fac Ext Cet Arc Hub Fac Upp Upp Zhi Pro Fac Was Fac Res Qua Frg Distress Signals 24 | . . . . 5 1 1 . 2 . 5 . . . . . 4 . 2 3 1 . Communications Jammed 60 | . . . . . . . . . . . . . . . . . . . 39 15 6 Distress Signals 60 | . . . . . . . . . . . . . . . . . . . 39 15 6 Times Spotted 532 | . 3 30 28 28 4 31 32 10 1 50 27 2 1 . 20 31 8 69 17 44 96 Peak Tracking Total 12 | . 3 6 5 12 2 9 6 5 4 9 4 3 1 . 9 6 4 10 4 5 8 Tactical Retreats 39 | . 1 1 1 5 . 4 2 . 1 4 . . . . 2 2 3 4 . 3 6 Traps | -11 -10 -10 -8 -8 -8 -6 -6 -6 -6 -6 -5 -5 -5 -5 -4 -4 -4 -4 -3 -3 -3 ------- Run | Yrd Mat Sub Mat Sto Rec Fac Ext Cet Arc Hub Fac Upp Upp Zhi Pro Fac Was Fac Res Qua Frg Traps Triggered 23 | . . 1 . 1 . 1 . . . 4 . . . . . 2 . 6 . 2 6 Indirectly 1 | . . . . . . . . . . . . . . . . . . . . . 1 Trap Hack Attempts . | . . . . . . . . . . . . . . . . . . . . . . Triggered . | . . . . . . . . . . . . . . . . . . . . . . Disarmed . | . . . . . . . . . . . . . . . . . . . . . . Reprogrammed . | . . . . . . . . . . . . . . . . . . . . . . Reused . | . . . . . . . . . . . . . . . . . . . . . . Traps Extracted . | . . . . . . . . . . . . . . . . . . . . . . Installed . | . . . . . . . . . . . . . . . . . . . . . . Triggered . | . . . . . . . . . . . . . . . . . . . . . . Machines | -11 -10 -10 -8 -8 -8 -6 -6 -6 -6 -6 -5 -5 -5 -5 -4 -4 -4 -4 -3 -3 -3 ---------- Run | Yrd Mat Sub Mat Sto Rec Fac Ext Cet Arc Hub Fac Upp Upp Zhi Pro Fac Was Fac Res Qua Frg Machines Disabled 94 | . . 2 3 6 2 2 1 1 1 14 16 . . . 2 11 . 8 1 8 16 Max in Single Turn 13 | . . . 2 2 . 1 . 1 . 13 7 . . . 1 3 . 2 1 1 2 Garrison Access 3 | . . . 1 . . . . . . . 1 . . . . . . 1 . . . Network Hub 1 | . . . . . . . . . . 1 . . . . . . . . . . . Machines Repaired . | . . . . . . . . . . . . . . . . . . . . . . Machines Dismantled . | . . . . . . . . . . . . . . . . . . . . . . Machines Sabotaged . | . . . . . . . . . . . . . . . . . . . . . . Overloaded Fab Kills . | . . . . . . . . . . . . . . . . . . . . . . Hacking | -11 -10 -10 -8 -8 -8 -6 -6 -6 -6 -6 -5 -5 -5 -5 -4 -4 -4 -4 -3 -3 -3 --------- Run | Yrd Mat Sub Mat Sto Rec Fac Ext Cet Arc Hub Fac Upp Upp Zhi Pro Fac Was Fac Res Qua Frg Machines Accessed 54 | . 1 2 6 1 8 3 6 1 . 4 4 . . 4 . 1 . 5 3 4 1 Terminals 33 | . 1 . 4 1 2 3 6 1 . 4 1 . . . . 1 . 2 3 4 . Fabricators 2 | . . . . . . . . . . . . . . . . . . 2 . . . Repair Stations . | . . . . . . . . . . . . . . . . . . . . . . Recycling Units 7 | . . . 1 . 5 . . . . . 1 . . . . . . . . . . Scanalyzers 1 | . . . . . . . . . . . 1 . . . . . . . . . . Garrison Access 4 | . . . 1 . . . . . . . 1 . . . . . . 1 . . 1 Total Hacks 154 | . 5 5 13 4 11 5 20 2 . 12 13 . . 17 . 2 . 12 8 22 3 Successful 81 | . 1 5 3 1 11 3 8 . . 5 9 . . 17 . . . 6 3 9 . Failed 73 | . 4 . 10 3 . 2 12 2 . 7 4 . . . . 2 . 6 5 13 3 Catastrophic 16 | . . . 3 . . 1 1 . . 3 . . . . . 1 . 2 1 3 1 Database Lockouts . | . . . . . . . . . . . . . . . . . . . . . . Manual 60 | . 5 . 8 5 7 3 3 1 . 9 1 . . . . . . 4 . 11 3 Terminals 105 | . 5 . 10 4 4 5 20 2 . 12 6 . . . . 2 . 5 8 22 . Fabricators 5 | . . . . . . . . . . . . . . . . . . 5 . . . Repair Stations . | . . . . . . . . . . . . . . . . . . . . . . Recycling Units 7 | . . . 1 . 5 . . . . . 1 . . . . . . . . . . Scanalyzers 5 | . . . . . . . . . . . 5 . . . . . . . . . . Garrison Access 8 | . . . 2 . . . . . . . 1 . . . . . . 2 . . 3 Terminal Hacks 58 | . 1 5 1 1 4 3 7 . . 3 3 . . 17 . . . 2 3 8 . Record 9 | . . 4 . . . . . . . . . . . 5 . . . . . . . Part Schematic 4 | . . . . . . . . . . . . . . 4 . . . . . . . Robot Analysis 5 | . 1 . . . . . . . . . . . . 4 . . . . . . . Prototype ID Bank 4 | . . . . . . . . . . . . . . 4 . . . . . . . Open Door 7 | . . . . . . 1 5 . . . . . . . . . . . 1 . . Branch Access Points 4 | . . . 1 1 . 1 . . . . 1 . . . . . . . . . . Machine Index 1 | . . . . . . . . . . . . . . . . . . . 1 . . Terminal Index 3 | . . . . . . . 1 . . 1 . . . . . . . . . 1 . Alert Level 3 | . . . . . . . 1 . . . 1 . . . . . . 1 . . . Unreport Threat 5 | . . . . . 2 . . . . . . . . . . . . . . 3 . Locate Traps 1 | . . . . . . . . . . . 1 . . . . . . . . . . Hauler Manifests 1 | . . . . . . . . . . . . . . . . . . . . 1 . Registered Components 1 | . . . . . . . . . . . . . . . . . . . . 1 . Zone Layout 7 | . . . . . . 1 . . . 2 . . . . . . . 1 1 2 . Proto ID Catalog 1 | . . 1 . . . . . . . . . . . . . . . . . . . Release Object 2 | . . . . . 2 . . . . . . . . . . . . . . . . Fabricator Hacks 2 | . . . . . . . . . . . . . . . . . . 2 . . . Load Schematic 1 | . . . . . . . . . . . . . . . . . . 1 . . . Build 1 | . . . . . . . . . . . . . . . . . . 1 . . . Repair Station Hacks . | . . . . . . . . . . . . . . . . . . . . . . Recycling Unit Hacks . | . . . . . . . . . . . . . . . . . . . . . . Scanalyzer 4 | . . . . . . . . . . . 4 . . . . . . . . . . Insert Component 4 | . . . . . . . . . . . 4 . . . . . . . . . . Garrison Access Hacks 3 | . . . 1 . . . . . . . 1 . . . . . . 1 . . . Seal Access 3 | . . . 1 . . . . . . . 1 . . . . . . 1 . . . Unauthorized Hacks 14 | . . . 1 . 7 . 1 . . 2 1 . . . . . . 1 . 1 . Terminals 6 | . . . . . 2 . 1 . . 2 . . . . . . . . . 1 . Botnet 5 | . . . . . 1 . 1 . . 2 . . . . . . . . . 1 . Skim 1 | . . . . . 1 . . . . . . . . . . . . . . . . Fabricators 1 | . . . . . . . . . . . . . . . . . . 1 . . . Haulers 1 | . . . . . . . . . . . . . . . . . . 1 . . . Repair Stations . | . . . . . . . . . . . . . . . . . . . . . . Recycling Units 7 | . . . 1 . 5 . . . . . 1 . . . . . . . . . . Tunnel 7 | . . . 1 . 5 . . . . . 1 . . . . . . . . . . Scanalyzers . | . . . . . . . . . . . . . . . . . . . . . . Garrison Access . | . . . . . . . . . . . . . . . . . . . . . . Data Cores Recovered 3 | . . . . 1 . . . . . . 1 . . . . . . . . 1 . Used 1 | . . . . 1 . . . . . . . . . . . . . . . . . Hacking Detections 33 | . 1 . 4 1 2 2 3 2 . 4 2 . . . . 1 . 4 2 4 1 Full Trace Events 9 | . 1 . 4 1 . 1 . . . . . . . . . . . 1 1 . . Feedback Events . | . . . . . . . . . . . . . . . . . . . . . . Feedback Blocked . | . . . . . . . . . . . . . . . . . . . . . . Robot Schematics Acquired 2 | . . . . . . . . . . . . . . . . . . . . 2 . Robots Built . | . . . . . . . . . . . . . . . . . . . . . . Authchips . | . . . . . . . . . . . . . . . . . . . . . . Time . | . . . . . . . . . . . . . . . . . . . . . . Total Robot Build Rating . | . . . . . . . . . . . . . . . . . . . . . . Part Schematics Acquired 12 | . . . . . . . . . . . . . . 4 . . . . . 6 2 Parts Built 1 | . . . . . . . . . . . . . . . . . . 1 . . . Authchips . | . . . . . . . . . . . . . . . . . . . . . . Time 93 | . . . . . . . . . . . . . . . . . . 93 . . . Total Part Build Rating 7 | . . . . . . . . . . . . . . . . . . 7 . . . Parts Repaired . | . . . . . . . . . . . . . . . . . . . . . . Time . | . . . . . . . . . . . . . . . . . . . . . . Parts Recycled . | . . . . . . . . . . . . . . . . . . . . . . Recycled Matter . | . . . . . . . . . . . . . . . . . . . . . . Retrieved Matter . | . . . . . . . . . . . . . . . . . . . . . . Retrieved Components . | . . . . . . . . . . . . . . . . . . . . . . Parts Scanalyzed . | . . . . . . . . . . . . . . . . . . . . . . Part Schematics Acquired . | . . . . . . . . . . . . . . . . . . . . . . Parts Damaged . | . . . . . . . . . . . . . . . . . . . . . . Bothacking | -11 -10 -10 -8 -8 -8 -6 -6 -6 -6 -6 -5 -5 -5 -5 -4 -4 -4 -4 -3 -3 -3 ------------ Run | Yrd Mat Sub Mat Sto Rec Fac Ext Cet Arc Hub Fac Upp Upp Zhi Pro Fac Was Fac Res Qua Frg Used RIF Installer . | . . . . . . . . . . . . . . . . . . . . . . Robots Hacked . | . . . . . . . . . . . . . . . . . . . . . . Non-combat . | . . . . . . . . . . . . . . . . . . . . . . Combat . | . . . . . . . . . . . . . . . . . . . . . . Robot Hacks Applied . | . . . . . . . . . . . . . . . . . . . . . . Relay Couplers Released . | . . . . . . . . . . . . . . . . . . . . . . Fabnet Peak Effective % . | . . . . . . . . . . . . . . . . . . . . . . Robots Rewired 22 | . . . . . . . 20 . . . . . . . 2 . . . . . . Allies Hacked 2 | . . . . . . 1 1 . . . . . . . . . . . . . . Hacks Repelled . | . . . . . . . . . . . . . . . . . . . . . . Allies | -11 -10 -10 -8 -8 -8 -6 -6 -6 -6 -6 -5 -5 -5 -5 -4 -4 -4 -4 -3 -3 -3 -------- Run | Yrd Mat Sub Mat Sto Rec Fac Ext Cet Arc Hub Fac Upp Upp Zhi Pro Fac Was Fac Res Qua Frg Total Allies 61 | . . 16 . 2 8 . 28 5 . . . . . . 2 . . . . . . Largest Group 22 | . . 8 8 2 8 8 22 22 17 . . . . . 2 . . . . . . Highest-Rated Group 937 | . . 152 152 62 150 150 760 937 937 . . . . . 96 . . . . . . Highest-Rated Ally 159 | . . 19 19 31 19 19 159 159 152 . . . . . 49 . . . . . . Total Orders 1 | . . . . . . . . . 1 . . . . . . . . . . . . AID 1 | . . . . . . . . . 1 . . . . . . . . . . . . Ally Attacks 564 | . . 85 104 17 12 52 162 86 46 . . . . . . . . . . . . Total Damage 9586 | . . 1356 1307 252 146 686 2378 1937 1524 . . . . . . . . . . . . Kills 88 | . . 18 18 1 2 6 20 12 11 . . . . . . . . . . . . Allies Corrupted . | . . . . . . . . . . . . . . . . . . . . . . Allies Melted . | . . . . . . . . . . . . . . . . . . . . . . Intel | -11 -10 -10 -8 -8 -8 -6 -6 -6 -6 -6 -5 -5 -5 -5 -4 -4 -4 -4 -3 -3 -3 ------- Run | Yrd Mat Sub Mat Sto Rec Fac Ext Cet Arc Hub Fac Upp Upp Zhi Pro Fac Was Fac Res Qua Frg Active Infowar (turns) 3418 | . . . . . . . . . . . . . . . . 1 . 403 912 1102 1000 Optics 403 | . . . . . . . . . . . . . . . . . . 403 . . . Sensors 437 | . . . . . . . . . . . . . . . . 1 . . 223 213 . Jamming 3013 | . . . . . . . . . . . . . . . . . . . 911 1102 1000 Robot Analysis Total 5 | . 1 . . . . . . . . . . . . 4 . . . . . . . Derelict Logs Recovered 5 | . . 1 . . . . . . . . . 1 1 . 2 . . . . . . Drone Launches . | . . . . . . . . . . . . . . . . . . . . . . Drone Recoveries . | . . . . . . . . . . . . . . . . . . . . . . Exploration | -11 -10 -10 -8 -8 -8 -6 -6 -6 -6 -6 -5 -5 -5 -5 -4 -4 -4 -4 -3 -3 -3 ------------- Run | Yrd Mat Sub Mat Sto Rec Fac Ext Cet Arc Hub Fac Upp Upp Zhi Pro Fac Was Fac Res Qua Frg Turns Passed 27705 | 86 62 3768 1139 559 4428 1860 1894 609 174 1800 1679 443 187 157 714 1246 415 1789 928 2153 1615 Spaces Moved 15983 | 49 24 1957 515 205 1998 1176 861 249 75 739 1061 455 192 148 470 1119 356 1322 542 1333 1137 Core 3 | 3 . . . . . . . . . . . . . . . . . . . . . Treads 9166 | 46 24 1957 515 124 1997 79 847 . . 641 219 455 192 148 18 . . 1275 320 105 204 Legs 2595 | . . . . . . . 13 . . . 437 . . . . 292 356 47 222 1228 . Wheels 339 | . . . . 81 1 257 . . . . . . . . . . . . . . . Hover 757 | . . . . . . . . . . . . . . . 452 281 . . . . 24 Flight 3123 | . . . . . . 840 1 249 75 98 405 . . . . 546 . . . . 909 Fastest Speed 22 | 50 160 160 160 155 79 49 158 158 224 119 92 92 92 92 92 76 83 83 108 108 22 Average Speed 122 | 153 160 160 197 158 157 71 175 187 224 166 130 92 92 92 98 92 83 83 138 108 42 Slowest Speed 310 | 160 160 160 250 160 160 310 177 224 224 224 180 92 92 92 133 133 83 159 159 108 108 Overloaded Moves 76 | . . . . . . . . . . . . . . . . . . . . . 76 Propulsion Burnouts . | . . . . . . . . . . . . . . . . . . . . . . Robots Hopped 13 | . . . . . . 11 . . . . . . . . . . . . . . 2 Potential Cave-ins 2 | . . 2 . . . . . . . . . . . . . . . . . . . Cave-ins Triggered . | . . . . . . . . . . . . . . . . . . . . . . Teleports 1 | . . . . . . . . . . . . . . . . . . . . . 1 Exploration Rate (%) 47 | 4 5 81 44 23 99 26 86 56 79 55 27 57 33 60 58 16 88 21 14 90 28 Regions Visited 21 Branch Regions 13 Pre-discovered Areas 12 | . . 2 1 . 5 . . . . . 1 . . 3 . . . . . . . Known Exits Taken 6 | . . . 1 1 . 1 . . . . 1 1 . . . . . . 1 . . Unknown Exits Taken 13 | 1 1 1 . . 1 . 1 1 1 1 . . 1 1 1 . . 1 . 1 . Scrap Searched 11 | . . 7 . . . . . . . . . 2 1 . 1 . . . . . . Spaces Dug 80 | . . 27 . . 1 22 . . . 6 4 . 1 . . 3 . 1 8 4 3 Terrain Destroyed 1054 | . . 258 39 55 5 33 . . . 192 146 3 4 . 26 92 10 82 36 28 45 Melee 1 | . . . . . 1 . . . . . . . . . . . . . . . . Projectile 375 | . . 24 1 2 4 12 . . . 31 61 3 4 . 26 27 10 63 36 28 43 AOE 678 | . . 234 38 53 . 21 . . . 161 85 . . . . 65 . 19 . . 2 Terrain Rammed . | . . . . . . . . . . . . . . . . . . . . . . Walls Destroyed . | . . . . . . . . . . . . . . . . . . . . . . Machines Disabled . | . . . . . . . . . . . . . . . . . . . . . . Actions | -11 -10 -10 -8 -8 -8 -6 -6 -6 -6 -6 -5 -5 -5 -5 -4 -4 -4 -4 -3 -3 -3 --------- Run | Yrd Mat Sub Mat Sto Rec Fac Ext Cet Arc Hub Fac Upp Upp Zhi Pro Fac Was Fac Res Qua Frg Total 22754 | 57 34 2463 584 364 3276 2115 1199 388 82 1202 1292 468 200 167 668 1261 431 1800 673 1956 2074 Wait 4817 | . 4 396 5 76 1236 841 102 125 8 336 159 . . 1 93 40 26 226 63 463 617 Move 15939 | 48 23 1956 514 204 1997 1155 860 248 74 738 1060 454 191 147 469 1119 355 1321 541 1332 1133 Hop 11 | . . . . . . 9 . . . . . . . . . . . . . . 2 Pick Up 165 | 3 . 10 11 6 5 10 . 7 . 17 4 2 2 4 1 7 3 16 10 21 26 Fast Attach 87 | 6 . 7 7 9 1 6 . . . 1 1 . . 6 . 1 2 4 1 4 31 Attach 44 | . . . 2 2 2 1 . 1 . . . . . 1 1 4 1 6 3 4 16 Detach 22 | . . 1 2 . 3 2 . . . . . . . . 1 1 . 4 . 3 5 Swap 33 | . . 2 6 6 1 . . . . . . . . 2 1 1 3 . 2 3 6 Drop 155 | . . 11 3 8 14 14 1 1 . 4 6 1 3 6 3 10 . 10 4 16 40 Fire 1227 | . 7 80 29 53 13 77 46 6 . 104 62 11 4 . 53 78 41 209 49 109 196 Melee 5 | . . . . . 3 . . . . . . . . . . . . . . . 2 Ram . | . . . . . . . . . . . . . . . . . . . . . . Kick 1 | . . . . . . . . . . . . . . . . . . . . 1 . Crush 12 | . . . 5 . 1 . . . . 2 . . . . . . . 4 . . . Escape Stasis . | . . . . . . . . . . . . . . . . . . . . . . Rewire 236 | . . . . . . . 190 . . . . . . . 46 . . . . . . Trap . | . . . . . . . . . . . . . . . . . . . . . . Miscellaneous . | . . . . . . . . . . . . . . . . . . . . . . Route ------- -11/Scrapyard -10/Materials -10/Subcaves (discovered 3 exits: *Mat x2 / *Rec) -8/Materials (discovered 3 exits: [*Fac] / *Sto x2) -8/Storage -8/Recycling -6/Factory (discovered 5 exits: *Fac / *Low x2 / *Ext x2) -6/Extension (discovered 2 exits: *Fac / *Cet) -6/Cetus (discovered 2 exits: *Fac / [*Arc]) -6/Archives -6/Hub_04(d) (discovered 4 exits: *Fac x4) -5/Factory (discovered 2 exits: *Upp x2) -5/Upper Caves -5/Upper Caves (discovered 2 exits: *Fac / *Zhi) -5/Zhirov -4/Proximity Caves -4/Factory -4/Waste -4/Factory -3/Research -3/Quarantine (discovered 3 exits: [*Res] / [*Sec] / *Frg) -3/Protoforge (discovered 1 exit: [*Res]) History --------- Turn | Location | Event 6 | -11/Scrapyard | Discovered new exit (range 16) 87 | -11/Scrapyard | Entered Materials 135 | -10/Materials | Discovered new exit (range 9) 149 | -10/Materials | Entered Subcaves 150 | -10/Subcaves | Approached by a straggling Scientist 284 | -10/Subcaves | Visited triangular shrine 294 | -10/Subcaves | Found Prototype Device 294 | -10/Subcaves | Identified V3-11A's Pendant 299 | -10/Subcaves | Befriended Subdweller 315 | -10/Subcaves | Build established: Mutant 757 | -10/Subcaves | Visited 4L-MR0's lab 979 | -10/Subcaves | Befriended Subdweller 979 | -10/Subcaves | Befriended Subdweller 1020 | -10/Subcaves | Ambushed by Subdweller buried in earth 1024 | -10/Subcaves | Befriended Subdweller 1026 | -10/Subcaves | Ambushed by Subdweller buried in earth 1029 | -10/Subcaves | Ambushed by Subdweller buried in earth 1051 | -10/Subcaves | Ambushed by Subdweller buried in earth 1054 | -10/Subcaves | Befriended Subdweller 1091 | -10/Subcaves | Ambushed by Subdweller buried in earth 1229 | -10/Subcaves | Befriended Subdweller 1231 | -10/Subcaves | Learned location of Zion (-7) 1234 | -10/Subcaves | Befriended Subdweller 1256 | -10/Subcaves | Discovered new exit (range 13) 1408 | -10/Subcaves | Discovered new exit (range 14) 1589 | -10/Subcaves | Discovered new exit (range 8) 1620 | -10/Subcaves | Shifting Twisted Machinery released Flamer 1627 | -10/Subcaves | Shifting Twisted Machinery released Sub. Power Source 1629 | -10/Subcaves | Befriended Subdweller 1654 | -10/Subcaves | Befriended Subdweller 1659 | -10/Subcaves | Befriended Subdweller 1758 | -10/Subcaves | Disturbed a concealed Subdweller 1759 | -10/Subcaves | Befriended Subdweller 2139 | -10/Subcaves | A Subdweller sparked back to life 2139 | -10/Subcaves | A Subdweller sparked back to life 2139 | -10/Subcaves | A Subdweller sparked back to life 2158 | -10/Subcaves | Found Meta Core 2175 | -10/Subcaves | Lost 3 allies 2451 | -10/Subcaves | Shifting Twisted Machinery released Mak. Light Armor Plating 2478 | -10/Subcaves | Shifting Twisted Machinery released Multitool 2675 | -10/Subcaves | Befriended Subdweller 2689 | -10/Subcaves | A swath of the cavern ceiling suddenly collapsed 3510 | -10/Subcaves | Ambushed by Subdweller buried in earth 3515 | -10/Subcaves | Befriended Subdweller 3650 | -10/Subcaves | Visited Clippyterm 3655 | -10/Subcaves | Learned location of Section 7 (-3) 3655 | -10/Subcaves | Learned Research machine intel 3764 | -10/Subcaves | Ambushed by Subdweller buried in earth 3765 | -10/Subcaves | Befriended Subdweller 3777 | -10/Subcaves | Ambushed by Subdweller buried in earth 3777 | -10/Subcaves | Ambushed by Subdweller buried in earth 3779 | -10/Subcaves | Ambushed by Subdweller buried in earth 3779 | -10/Subcaves | Ambushed by Subdweller buried in earth 3780 | -10/Subcaves | Befriended Subdweller 3780 | -10/Subcaves | Befriended Subdweller 3917 | -10/Subcaves | Entered Materials 3917 | -8/Materials | Accompanied by 8 allies 3917 | -8/Materials | Evolved 4 slots: Propulsion x4 4350 | -8/Materials | Build established: Scavenger-Mutant 4427 | -8/Materials | Discovered new exit (range 6) 4681 | -8/Materials | Discovered new exit (range 13) 4690 | -8/Materials | Lost 3 allies 4868 | -8/Materials | Identified exit to Storage 5056 | -8/Materials | Entered Storage 5066 | -8/Storage | Met a pair of Derelict thieves 5137 | -8/Storage | Identified exit to Recycling 5345 | -8/Storage | Lost 6 parts (6n) 5363 | -8/Storage | Destroyed 8 combat bots 5456 | -8/Storage | First assault squad dispatched 5612 | -8/Storage | Used back door to open Recycling access 5615 | -8/Storage | Entered Recycling 5735 | -8/Recycling | Befriended Subdweller 5735 | -8/Recycling | Befriended Subdweller 5775 | -8/Recycling | Befriended Subdweller 5800 | -8/Recycling | Befriended Subdweller 5975 | -8/Recycling | Befriended Subdweller 5990 | -8/Recycling | Befriended Subdweller 5990 | -8/Recycling | Befriended Subdweller 6003 | -8/Recycling | Discovered new exit (range 13) 6095 | -8/Recycling | Befriended Subdweller 6583 | -8/Recycling | Entered Scraplab 6600 | -8/Recycling | Found Prototype Device 6600 | -8/Recycling | Identified Scrap Engine 7611 | -8/Recycling | Build established: Construct 10043 | -8/Recycling | Entered Factory 10043 | -6/Factory | Accompanied by 8 allies 10043 | -6/Factory | Evolved 4 slots: Power x1, Utility x2, Weapon x1 10070 | -6/Factory | Identified exit to Lower Caves 10070 | -6/Factory | Identified exit to Extension 10784 | -6/Factory | Lost 3 allies 11032 | -6/Factory | Discovered new exit (range 16) 11623 | -6/Factory | Cargo convoy interrupted 11903 | -6/Factory | Entered Extension 11957 | -6/Extension | Rescued a captive Derelict 11958 | -6/Extension | Rescued a captive Derelict 11972 | -6/Extension | Rescued a captive Derelict 11973 | -6/Extension | Rescued a captive Derelict 12006 | -6/Extension | Rescued a captive Derelict 12008 | -6/Extension | Rescued a captive Derelict 12239 | -6/Extension | Rescued a captive Derelict 12422 | -6/Extension | Build established: Commander-Construct 12694 | -6/Extension | Disrupted transfer network 12835 | -6/Extension | Spotted B-75 Beast 12846 | -6/Extension | Spotted B-75 Beast 12849 | -6/Extension | Destroyed B-75 Beast 12857 | -6/Extension | Allies destroyed B-75 Beast 12886 | -6/Extension | Lost 3 allies 13133 | -6/Extension | Rescued A7 13713 | -6/Extension | Discovered new exit (range 10) 13715 | -6/Extension | Discovered new exit (range 6) 13797 | -6/Extension | Entered Cetus 13797 | -6/Cetus | Accompanied by 22 allies (A7) 13802 | -6/Cetus | Acquired a Cetus Manufacturing Module code from A7 13830 | -6/Cetus | Spotted Cetus Guard 13830 | -6/Cetus | Spotted Cetus Guard 13831 | -6/Cetus | Spotted Cetus Guard 13835 | -6/Cetus | Spotted Cetus Guard 13846 | -6/Cetus | Allies destroyed Cetus Guard 13847 | -6/Cetus | Allies destroyed Cetus Guard 13850 | -6/Cetus | Allies destroyed Cetus Guard 13859 | -6/Cetus | Allies destroyed Cetus Guard 13888 | -6/Cetus | Lost 6 allies 13989 | -6/Cetus | Discovered new exit (range 15) 14085 | -6/Cetus | Spotted Cetus Guard 14086 | -6/Cetus | Spotted Cetus Guard 14090 | -6/Cetus | Spotted Cetus Guard 14092 | -6/Cetus | Spotted Cetus Guard 14108 | -6/Cetus | Allies destroyed Cetus Guard 14110 | -6/Cetus | Discovered new exit (range 16) 14111 | -6/Cetus | Allies destroyed Cetus Guard 14114 | -6/Cetus | Allies destroyed Cetus Guard 14115 | -6/Cetus | Allies destroyed Cetus Guard 14125 | -6/Cetus | Met Revision 17 14130 | -6/Cetus | Lost 4 allies 14241 | -6/Cetus | Started Cetus Manufacturing Module 14266 | -6/Cetus | Manufactured an Enhanced Grunt 14291 | -6/Cetus | Manufactured an Enhanced Grunt 14316 | -6/Cetus | Manufactured an Enhanced Grunt 14341 | -6/Cetus | Manufactured an Enhanced Grunt 14366 | -6/Cetus | Manufactured an Enhanced Grunt 14406 | -6/Cetus | Entered Archives 14406 | -6/Archives | Accompanied by 17 allies (A7) 14431 | -6/Archives | Met Zhirov 14437 | -6/Archives | Reinforcements dispatched to Archives 14456 | -6/Archives | Discovered new exit (range 16) 14482 | -6/Archives | Reinforcements dispatched to Archives 14502 | -6/Archives | Zhirov detonated Archives 14533 | -6/Archives | Lost 12 allies 14580 | -6/Archives | Entered Hub_04(d) 14787 | -6/Hub_04(d) | Build established: Construct 14990 | -6/Hub_04(d) | Discovered new exit (range 16) 15065 | -6/Hub_04(d) | Discovered new exit (range 11) 15657 | -6/Hub_04(d) | Discovered new exit (range 6) 15669 | -6/Hub_04(d) | Garrison activated, responded to threat 15746 | -6/Hub_04(d) | Discovered new exit (range 16) 16330 | -6/Hub_04(d) | First assault squad dispatched 16356 | -6/Hub_04(d) | Network Hub disabled 16362 | -6/Hub_04(d) | Spotted Lightning 16363 | -6/Hub_04(d) | Core integrity fell below 50% 16363 | -6/Hub_04(d) | Spotted Lightning 16370 | -6/Hub_04(d) | Spotted Lightning 16380 | -6/Hub_04(d) | System corruption reached 10% 16380 | -6/Hub_04(d) | Entered Factory 16380 | -5/Factory | Evolved 2 slots: Propulsion x2 16730 | -5/Factory | Discovered new exit (range 12) 16944 | -5/Factory | Identified exit to Upper Caves 17580 | -5/Factory | First assault squad dispatched 18059 | -5/Factory | Entered Upper Caves 18402 | -5/Upper Caves | Identified exit to Upper Caves 18424 | -5/Upper Caves | Encountered a Warlord checkpoint 18502 | -5/Upper Caves | Entered another Upper Caves area 18514 | -5/Upper Caves | Discovered new exit (range 2) 18582 | -5/Upper Caves | Attracted the attention of an 0b10 checkpoint 18593 | -5/Upper Caves | Learned Factory terminal intel 18679 | -5/Upper Caves | Discovered new exit (range 12) 18689 | -5/Upper Caves | Entered Zhirov 18689 | -5/Zhirov | Discovered new exit (range 3) 18729 | -5/Zhirov | Found Alien Artifact 18729 | -5/Zhirov | Identified Integrated Dissipator 18729 | -5/Zhirov | Installed Integrated Dissipator, increased core heat dissipation (+20) 18790 | -5/Zhirov | Found Alien Artifact 18814 | -5/Zhirov | Learned location of Quarantine (-3) 18846 | -5/Zhirov | Entered Proximity Caves 18930 | -4/Proximity Caves | Learned Research stockpile data 18978 | -4/Proximity Caves | System corruption reached 10% 19046 | -4/Proximity Caves | Learned location of 1 exit from Research 19048 | -4/Proximity Caves | Attracted the attention of an 0b10 outpost 19282 | -4/Proximity Caves | Discovered new exit (range 15) 19560 | -4/Proximity Caves | Entered Factory 19560 | -4/Factory | Evolved 2 slots: Power x1, Weapon x1 19561 | -4/Factory | Loaded intel: 24 terminal locations 19561 | -4/Factory | Attached Meta Core, gained temporary slots: Propulsion, Utility, Weapon 19608 | -4/Factory | Found Quantum Capacitor 20543 | -4/Factory | Discovered new exit (range 16) 20806 | -4/Factory | Sucked down chute 20806 | -4/Factory | Entered Waste 20812 | -4/Waste | Spotted C-40 Crusher 20844 | -4/Waste | Destroyed C-40 Crusher 20855 | -4/Waste | Spotted C-40 Crusher 20871 | -4/Waste | Spotted C-40 Crusher 20875 | -4/Waste | Spotted C-40 Crusher 20899 | -4/Waste | Destroyed C-40 Crusher 20907 | -4/Waste | Crushed by Compactor (0 parts destroyed, 1 dropped) 21059 | -4/Waste | Spotted C-40 Crusher 21098 | -4/Waste | Spotted C-40 Crusher 21100 | -4/Waste | Discovered new exit (range 16) 21221 | -4/Waste | Entered Factory 21347 | -4/Factory | Fabricated Exp. Optical Array? 21543 | -4/Factory | System corruption reached 10% 21569 | -4/Factory | Destroyed 9 combat bots 21601 | -4/Factory | Discovered new exit (range 12) 21831 | -4/Factory | Destroyed 7 combat bots 22585 | -4/Factory | Found Prototype Launcher 22585 | -4/Factory | Identified Mni. Smartbomb Launcher 22645 | -4/Factory | System corruption reached 30% 22889 | -4/Factory | Core integrity fell below 50% 22971 | -4/Factory | First assault squad dispatched 23010 | -4/Factory | Entered Research 23010 | -3/Research | Evolved 2 slots: Utility x2 23011 | -3/Research | Identified exit to Quarantine 23013 | -3/Research | Loaded intel: 127 machine locations 23210 | -3/Research | Revision forces began assault on 0b10 23224 | -3/Research | Met up with Revision 17++ 23710 | -3/Research | Research terminal network offline 23728 | -3/Research | Murdered Revision 23752 | -3/Research | Murdered Revision 23938 | -3/Research | Entered Quarantine 24520 | -3/Quarantine | Found Alien Artifact 24826 | -3/Quarantine | Discovered new exit (range 6) 24929 | -3/Quarantine | Found Alien Artifact 24935 | -3/Quarantine | Found Alien Artifact 25039 | -3/Quarantine | Found Alien Artifact 25040 | -3/Quarantine | Identified Core Reset Matrix 25040 | -3/Quarantine | Identified Transdimensional Reconstructor (x2) 25040 | -3/Quarantine | Identified Dimensional Node Initializer 25040 | -3/Quarantine | Identified Subatomic Replicator 25040 | -3/Quarantine | Used Core Reset Matrix 25044 | -3/Quarantine | Detected hypermatrix surge 25044 | -3/Quarantine | Sensed 13 artifacts in vicinity 25096 | -3/Quarantine | Found Terrabomb 25371 | -3/Quarantine | Garrison activated, responded to threat 25399 | -3/Quarantine | System corruption reached 10% 25470 | -3/Quarantine | Cryocooling Duct disabled 25474 | -3/Quarantine | Cryocooling Duct disabled 25485 | -3/Quarantine | Ambient heat levels rising (+20) 25485 | -3/Quarantine | Non-combat units ordered to evacuate 25489 | -3/Quarantine | Ambient heat levels rising (+20) 25489 | -3/Quarantine | Combat units ordered to evacuate 25589 | -3/Quarantine | Quarantine Guard activated 25603 | -3/Quarantine | Spotted Quarantine Guard 25605 | -3/Quarantine | Spotted Quarantine Guard 25632 | -3/Quarantine | Destroyed Quarantine Guard 25641 | -3/Quarantine | Destroyed Quarantine Guard 25650 | -3/Quarantine | Spotted Quarantine Guard 25653 | -3/Quarantine | Destroyed Quarantine Guard 25711 | -3/Quarantine | Spotted Quarantine Guard 25719 | -3/Quarantine | Destroyed Quarantine Guard 25749 | -3/Quarantine | Discovered new exit (range 12) 25749 | -3/Quarantine | Spotted Quarantine Guard 25749 | -3/Quarantine | Spotted Quarantine Guard 25750 | -3/Quarantine | Spotted Quarantine Guard 25757 | -3/Quarantine | Destroyed Quarantine Guard 25770 | -3/Quarantine | Destroyed Quarantine Guard 25771 | -3/Quarantine | Destroyed Quarantine Guard 25917 | -3/Quarantine | Spotted Quarantine Guard 25928 | -3/Quarantine | Destroyed Quarantine Guard 25995 | -3/Quarantine | Spotted Fortress 26080 | -3/Quarantine | Discovered new exit (range 5) 26080 | -3/Quarantine | Discovered new exit (range 6) 26080 | -3/Quarantine | Spotted Quarantine Guard 26080 | -3/Quarantine | Spotted Quarantine Guard 26091 | -3/Quarantine | Entered Protoforge 26092 | -3/Protoforge | Sensed 2 artifacts in vicinity 26150 | -3/Protoforge | Superfortress began startup sequence 26153 | -3/Protoforge | Spotted Hotshot 26153 | -3/Protoforge | Spotted Hotshot 26153 | -3/Protoforge | Spotted Hotshot 26153 | -3/Protoforge | Spotted Hotshot 26153 | -3/Protoforge | Spotted Hotshot 26191 | -3/Protoforge | Destroyed Hotshot 26192 | -3/Protoforge | Destroyed Hotshot 26193 | -3/Protoforge | Destroyed Hotshot 26199 | -3/Protoforge | Destroyed Hotshot 26222 | -3/Protoforge | Destroyed Hotshot 26291 | -3/Protoforge | Forge Plexus network access discovered 26308 | -3/Protoforge | Discovered new exit (range 16) 26316 | -3/Protoforge | Spotted Decapitator 26316 | -3/Protoforge | Spotted Decapitator 26316 | -3/Protoforge | Spotted Decapitator 26317 | -3/Protoforge | Destroyed Decapitator 26318 | -3/Protoforge | Spotted Decapitator 26324 | -3/Protoforge | Destroyed Decapitator 26326 | -3/Protoforge | Destroyed Decapitator 26328 | -3/Protoforge | Destroyed Decapitator 26341 | -3/Protoforge | First assault squad dispatched 26349 | -3/Protoforge | Destroyed 10 combat bots 26403 | -3/Protoforge | Spotted B-86 Titan 26418 | -3/Protoforge | Destroyed B-86 Titan 26949 | -3/Protoforge | Found Faulty Cep. XC Strikerail 26950 | -3/Protoforge | Found Faulty Cep. XC Strikerail 26952 | -3/Protoforge | Found Cep. XC Strikerail 27185 | -3/Protoforge | Spotted Decapitator 27185 | -3/Protoforge | Spotted Decapitator 27185 | -3/Protoforge | Spotted Decapitator 27185 | -3/Protoforge | Spotted Decapitator 27188 | -3/Protoforge | Destroyed Decapitator 27189 | -3/Protoforge | Destroyed Decapitator 27193 | -3/Protoforge | Destroyed Decapitator 27199 | -3/Protoforge | Destroyed Decapitator 27209 | -3/Protoforge | Found Prototype Device 27210 | -3/Protoforge | Identified Crosscalibrator 27214 | -3/Protoforge | Spotted Immortal 27214 | -3/Protoforge | Spotted Immortal 27226 | -3/Protoforge | Destroyed Immortal 27256 | -3/Protoforge | Destroyed Immortal 27267 | -3/Protoforge | Spotted Decapitator 27267 | -3/Protoforge | Spotted Decapitator 27267 | -3/Protoforge | Spotted Decapitator 27275 | -3/Protoforge | Found Prototype Device 27278 | -3/Protoforge | Found Prototype Device 27279 | -3/Protoforge | Identified Cep. Recoil Nullifier (x2) 27282 | -3/Protoforge | Found Cep. Countertargeting System 27284 | -3/Protoforge | Found Exp. Kinecellerator 27286 | -3/Protoforge | Found Cep. Weapon Articulator 27289 | -3/Protoforge | Found Cep. Hypertargeting System 27292 | -3/Protoforge | Found Exp. Kinecellerator 27294 | -3/Protoforge | Found Cep. Weapon Articulator 27301 | -3/Protoforge | Destroyed Decapitator 27301 | -3/Protoforge | Destroyed Decapitator 27304 | -3/Protoforge | Destroyed Decapitator 27343 | -3/Protoforge | Found Faulty Cep. Tiamat Rocket Array 27344 | -3/Protoforge | Found Faulty Cep. Tiamat Rocket Array 27353 | -3/Protoforge | Found Cep. EMP Blanket Launcher 27357 | -3/Protoforge | Found Faulty Cep. EMP Blanket Launcher 27391 | -3/Protoforge | Spotted V628-n 27391 | -3/Protoforge | Spotted V111-w 27391 | -3/Protoforge | Spotted V403-f 27391 | -3/Protoforge | Spotted V916-t 27395 | -3/Protoforge | Destroyed 8 combat bots 27421 | -3/Protoforge | Destroyed V111-w 27425 | -3/Protoforge | Garrison activated, responded to threat 27431 | -3/Protoforge | Core integrity fell below 50% 27447 | -3/Protoforge | Destroyed V403-f 27468 | -3/Protoforge | Destroyed 7 combat bots 27482 | -3/Protoforge | Destroyed V628-n 27505 | -3/Protoforge | Found Prototype Device 27505 | -3/Protoforge | Identified Exp. Actuator Array 27511 | -3/Protoforge | Found Prototype Device 27511 | -3/Protoforge | Identified Exp. Weapon Cycler 27513 | -3/Protoforge | Found Prototype Device 27515 | -3/Protoforge | Identified Exp. EM Shield 27527 | -3/Protoforge | Lost 8 parts (1p2n1u4w) 27531 | -3/Protoforge | System corruption reached 30% 27564 | -3/Protoforge | Spotted Decapitator 27564 | -3/Protoforge | Spotted Decapitator 27564 | -3/Protoforge | Spotted Decapitator 27564 | -3/Protoforge | Spotted Decapitator 27565 | -3/Protoforge | Spotted Decapitator 27571 | -3/Protoforge | Destroyed Decapitator 27588 | -3/Protoforge | Destroyed Decapitator 27588 | -3/Protoforge | Destroyed Decapitator 27593 | -3/Protoforge | Core integrity fell below 20% 27606 | -3/Protoforge | Spotted V844-l 27610 | -3/Protoforge | Lost 3 parts (1n1u1w) 27611 | -3/Protoforge | Spotted V263-o 27612 | -3/Protoforge | Warped through subspace 27627 | -3/Protoforge | Found Cep. Zero-point Core 27632 | -3/Protoforge | Found Cep. Zero-point Core 27680 | -3/Protoforge | Lost 3 parts (2u1w) 27699 | -3/Protoforge | Found Corrupted Prototype Slashing Weapon 27699 | -3/Protoforge | Identified Exp. Terror Saw 27704 | -3/Protoforge | Spotted V901-o 27706 | -3/Protoforge | Destroyed by V901-o with Concept Rapid Grenade Launcher Last Messages --------------- 27686_ Com. Mass Driver destroyed. 27686_ Slug penetrates Reinforced Barrier. 27687_ Identified Cep. Turbovents. 27688_ Q%R=&=RUW51Z#OEMKAB& W F>Z7G 27689_ Acquired 3 matter. 27689_ Slug penetrates Reinforced Barrier. 27690_ Acquired 8 matter. 27698_ Acquired 42 matter. 27699_ Acquired Corrupted Prototype Slashing Weapon. 27699_ Identified Exp. Terror Saw. 27699_ Integrated Corrupted Exp. Terror Saw (+4). 27704_ System corrupted: Energy discharge (-639). 27704_ Closed Research Cell breached. 27706_ V901-o springs to life. 27706_ Penetrated by Slug. 27706_ Slug penetrates Reinforced Barrier. 27706_ Penetrated by Slug. Map ----- +----------------------------------------------------+ | #??????????????][[[][[????????????????????? | | ### ##??????????????[/[[]]?????????????????????? | | ??# #???????????????]/]/[[?????????????????????? | | ??# #??????????????????????????????????????????? | | ??# #??????????????????????????????????????????? | | ??# #??????????????????????????????????????????? | | ??# ###################????????????????????????? | | ??# ???????????????????? | | ??# ! ???????????????????? | | ??#= ######### ######## ???????????????????? | | ??# #???????? ??????????????????????????????? | | ??# #???????? ?????????????????????????????? | | ??#= #????????" ????????///[][??????????????? | | ??# #????????? """# ???????/][/[[??????????????? | | ??#! #?????????#####? ??????????????????????????? | | ??# #????????????????#?????????????????????????? | | ??# #??????????????????????????????????????????? | | ??# #??????????????????????????????????????????? | | ??# #??????????????????????????????????????????? | | ??# #??????????????????????????????????????????? | | ??# #??????????????????????????????????????????? | | ??# ^#????????????????????###???????????????????? | | ??# ^ #?????????????????=?===#?=====?????????????? | | ??# #?????????????????===V=??=====?????????????? | | ??# #????????????????### ""##"""###????????????? | | ??# #????????????????# @ "#????????????? | | ??# #????????????????# ""#????????????? | | ??# ################## """"#????????????? | | ??# = /%] """??????????????? | | ??# == ""?????????????? | | ??# ########### #"" "#????????????? | | ??# #?????????# * #?" "#????????????? | | ??# #?????????#######?#""""""""""##????????????? | | ??# #?????????????????" ====== = "?????????????? | | ??# #?????????????????" ===== =="?????????????? | | ??# #?????????????????"""""""""""??????????????? | | ??# #?????????????????########?????????????????? | | ??# #??????????????????????????????????????????? | | ??# #??????????????????????????????????????????? | | ??# #??????????????????????????????????????????? | | ??# #??????????????????????????????????????????? | | ??# #??????????????????????????????????????????? | | ??# #??????????????????????????????????????????? | | ??# ^ #??????????????????!!???!?!!!??????????????? | | ??# #?????????????????!?!!???!!?!??????????????? | | ??# #??????????????????????????????????????????? | | ??# #??????????????????????????????????????????? | | ??# #??????????????????????????????????????????? | | ??# ############???????????????????????????????? | | ??# ?????????????????????????????? | +----------------------------------------------------+ Best States ------------- Heat Dissipation 142 Coolant Potential 120 Energy Generation 79 Energy Capacity 1640 Matter Stores 300 Matter Capacity 300 Sight Range 23 Robot Scan Range 18 Terrain Scan Density 10 Jamming Range 16 EM Shielding 4 Resistance: EM 75 Weapon Cycling 30 Evasion (%) 65 Targeting Accuracy 30 Recoil Reduction 6 Kinecelleration 66 Offensive Hacking 14 Defensive Hacking 12 Item Schematics ----------------- Exp. Cooling System | -3/Quarantine | Archive Imp. Diametric Drive | -3/Quarantine | Archive Com. Particle Reactor | -3/Quarantine | Archive Cld. Field Propulsion Drive | -3/Quarantine | Archive Shock Maul | -3/Quarantine | Archive Enh. Multireflex Exoskeleton | -3/Quarantine | Archive Enh. Biometal Leg | -3/Protoforge | Archive Hvy. Dispersion Rifle | -3/Protoforge | Archive Robot Schematics ------------------ T-07 Excavator | -3/Quarantine | Archive A-15 Conveyor | -3/Quarantine | Archive Fabricated ------------ Exp. Optical Array | x1 | -4/Factory Repaired ---------- Nothing Alien Tech Used ----------------- Integrated Dissipator Core Reset Matrix Transdimensional Reconstructor Achievements -------------- None Challenges ------------ None Game ------ Seed NodeVariableCyclogen Manual? 0 Play Time 03:13:16 Cumulative 996.8 hours Start 2025.06.04 @ 17:03:48 End 2025.06.06 @ 16:51:37 Sessions 3 Manual Loads 0 Difficulty Rogue Special Mode None Game No. 597 Rogue 590 Adventurer 0 Explorer 7 Win Type - Total 66 Types 23/6/25/2/0/1/6/1/2/0 Lore% 92 Gallery% 92 Achievement% 85 Wizard Run 0 Options --------- Layout 1 ASCII 0 Keyboard 0 Movement Numpad Keybinds 0 Fullscreen 2 Font 24/Smallcaps Map View 50x35 Zoom Use 0% Tactical HUD 1 Map Filters NONE Filters NONE Steam 1 RUN: 27e08d2a-6c75-4070-9e1a-78c30440aaff